{"text_format":"1","workbook":"xlsx","n_sheets":2,"sheets":["WBS","RACI"],"not_rendered":{"charts":0,"images":0,"macros":1,"external_links":0,"defined_names":1,"comments":0,"pivot_tables":0},"unopened":[],"bounds":{"document_bytes":16777216,"sheet_cells":100000,"rows_first":2000,"rows_last":500,"rows_between":2000,"halvings":0,"cell_chars":16384,"cell_head_chars":4096},"cells_cut":0,"cells_raw":0,"read":"whole","date_system":"1900"}

{"sheet":"WBS","index":0,"n_rows":8,"n_cols":7,"rows_kept":8,"cut":false,"hidden":false,"merged":[]}
[null,null,null,"[PROJET]"]
[]
["[LOT 1]",null,"[LOT 2]",null,"[LOT 3]",null,"[LOT 4]"]
["[TACHE A1]",null,"[TACHE A2]",null,"[TACHE A3]",null,"[TACHE A4]"]
["[TACHE B1]",null,"[TACHE B2]",null,"[TACHE B3]",null,"[TACHE B4]"]
["[TACHE C1]",null,"[TACHE C2]",null,"[TACHE C3]",null,"[TACHE C4]"]
["[TACHE D1]",null,"[TACHE D2]",null,"[TACHE D3]",null,"[TACHE D4]"]
["[TACHE E1]",null,"[TACHE E2]",null,"[TACHE E3]",null,"[TACHE E4]"]

{"sheet":"RACI","index":1,"n_rows":216,"n_cols":14,"rows_kept":216,"cut":false,"hidden":false,"merged":[]}
["LOT/TACHE","Intervenant A","Intervenant B","Intervenant C","Intervenant D","Intervenant E","Intervenant F","Intervenant G","Intervenant H","Intervenant I","Intervenant J","DURÉE 1","DURÉE 2","ORDRE"]
[{"$f":"WBS!A3","v":"[LOT 1]"}]
[{"$f":"WBS!A4","v":"[TACHE A1]"},null,null,null,null,null,null,null,null,null,null,1,3,1]
[{"$f":"WBS!A5","v":"[TACHE B1]"},null,null,null,null,null,null,null,null,null,null,null,null,7]
[{"$f":"WBS!A6","v":"[TACHE C1]"},null,null,null,null,null,null,null,null,null,null,null,null,3]
[{"$f":"WBS!A7","v":"[TACHE D1]"},null,null,null,null,null,null,null,null,null,null,null,null,4]
[{"$f":"WBS!A8","v":"[TACHE E1]"},null,null,null,null,null,null,null,null,null,null,null,null,5]
[{"$f":"WBS!A9","v":0},null,null,null,null,null,null,null,null,null,null,null,null,27]
[{"$f":"WBS!A10","v":0},null,null,null,null,null,null,null,null,null,null,null,null,28]
[{"$f":"WBS!A11","v":0},null,null,null,null,null,null,null,null,null,null,null,null,29]
[{"$f":"WBS!A12","v":0},null,null,null,null,null,null,null,null,null,null,null,null,30]
[{"$f":"WBS!A13","v":0},null,null,null,null,null,null,null,null,null,null,null,null,31]
[{"$f":"WBS!A14","v":0},null,null,null,null,null,null,null,null,null,null,null,null,53]
[{"$f":"WBS!A15","v":0},null,null,null,null,null,null,null,null,null,null,null,null,54]
[{"$f":"WBS!A16","v":0},null,null,null,null,null,null,null,null,null,null,null,null,55]
[{"$f":"WBS!A17","v":0},null,null,null,null,null,null,null,null,null,null,null,null,56]
[{"$f":"WBS!A18","v":0},null,null,null,null,null,null,null,null,null,null,null,null,57]
[{"$f":"WBS!A19","v":0},null,null,null,null,null,null,null,null,null,null,null,null,79]
[{"$f":"WBS!A20","v":0},null,null,null,null,null,null,null,null,null,null,null,null,80]
[{"$f":"WBS!A21","v":0},null,null,null,null,null,null,null,null,null,null,null,null,81]
[{"$f":"WBS!A22","v":0},null,null,null,null,null,null,null,null,null,null,null,null,82]
[{"$f":"WBS!A23","v":0},null,null,null,null,null,null,null,null,null,null,null,null,83]
[{"$f":"WBS!A24","v":0},null,null,null,null,null,null,null,null,null,null,null,null,21]
[{"$f":"WBS!A25","v":0},null,null,null,null,null,null,null,null,null,null,null,null,22]
[{"$f":"WBS!A26","v":0},null,null,null,null,null,null,null,null,null,null,null,null,23]
[{"$f":"WBS!A27","v":0},null,null,null,null,null,null,null,null,null,null,null,null,24]
[{"$f":"WBS!A28","v":0},null,null,null,null,null,null,null,null,null,null,null,null,25]
[{"$f":"WBS!A29","v":0},null,null,null,null,null,null,null,null,null,null,null,null,26]
[{"$f":"WBS!C3","v":"[LOT 2]"}]
[{"$f":"WBS!C4","v":"[TACHE A2]"},null,null,null,null,null,null,null,null,null,null,null,null,6]
[{"$f":"WBS!C5","v":"[TACHE B2]"},null,null,null,null,null,null,null,null,null,null,null,null,2]
[{"$f":"WBS!C6","v":"[TACHE C2]"},null,null,null,null,null,null,null,null,null,null,null,null,8]
[{"$f":"WBS!C7","v":"[TACHE D2]"},null,null,null,null,null,null,null,null,null,null,null,null,9]
[{"$f":"WBS!C8","v":"[TACHE E2]"},null,null,null,null,null,null,null,null,null,null,null,null,10]
[{"$f":"WBS!C9","v":0},null,null,null,null,null,null,null,null,null,null,null,null,32]
[{"$f":"WBS!C10","v":0},null,null,null,null,null,null,null,null,null,null,null,null,33]
[{"$f":"WBS!C11","v":0},null,null,null,null,null,null,null,null,null,null,null,null,34]
[{"$f":"WBS!C12","v":0},null,null,null,null,null,null,null,null,null,null,null,null,35]
[{"$f":"WBS!C13","v":0},null,null,null,null,null,null,null,null,null,null,null,null,36]
[{"$f":"WBS!C14","v":0},null,null,null,null,null,null,null,null,null,null,null,null,37]
[{"$f":"WBS!C15","v":0},null,null,null,null,null,null,null,null,null,null,null,null,38]
[{"$f":"WBS!C16","v":0},null,null,null,null,null,null,null,null,null,null,null,null,39]
[{"$f":"WBS!C17","v":0},null,null,null,null,null,null,null,null,null,null,null,null,40]
[{"$f":"WBS!C18","v":0},null,null,null,null,null,null,null,null,null,null,null,null,41]
[{"$f":"WBS!C19","v":0},null,null,null,null,null,null,null,null,null,null,null,null,42]
[{"$f":"WBS!C20","v":0},null,null,null,null,null,null,null,null,null,null,null,null,43]
[{"$f":"WBS!C21","v":0},null,null,null,null,null,null,null,null,null,null,null,null,44]
[{"$f":"WBS!C22","v":0},null,null,null,null,null,null,null,null,null,null,null,null,45]
[{"$f":"WBS!C23","v":0},null,null,null,null,null,null,null,null,null,null,null,null,46]
[{"$f":"WBS!C24","v":0},null,null,null,null,null,null,null,null,null,null,null,null,47]
[{"$f":"WBS!C25","v":0},null,null,null,null,null,null,null,null,null,null,null,null,48]
[{"$f":"WBS!C26","v":0},null,null,null,null,null,null,null,null,null,null,null,null,49]
[{"$f":"WBS!C27","v":0},null,null,null,null,null,null,null,null,null,null,null,null,50]
[{"$f":"WBS!C28","v":0},null,null,null,null,null,null,null,null,null,null,null,null,51]
[{"$f":"WBS!C29","v":0},null,null,null,null,null,null,null,null,null,null,null,null,52]
[{"$f":"WBS!E3","v":"[LOT 3]"}]
[{"$f":"WBS!E4","v":"[TACHE A3]"},null,null,null,null,null,null,null,null,null,null,null,null,11]
[{"$f":"WBS!E5","v":"[TACHE B3]"},null,null,null,null,null,null,null,null,null,null,null,null,12]
[{"$f":"WBS!E6","v":"[TACHE C3]"},null,null,null,null,null,null,null,null,null,null,null,null,13]
[{"$f":"WBS!E7","v":"[TACHE D3]"},null,null,null,null,null,null,null,null,null,null,null,null,14]
[{"$f":"WBS!E8","v":"[TACHE E3]"},null,null,null,null,null,null,null,null,null,null,null,null,15]
[{"$f":"WBS!E9","v":0},null,null,null,null,null,null,null,null,null,null,null,null,58]
[{"$f":"WBS!E10","v":0},null,null,null,null,null,null,null,null,null,null,null,null,59]
[{"$f":"WBS!E11","v":0},null,null,null,null,null,null,null,null,null,null,null,null,60]
[{"$f":"WBS!E12","v":0},null,null,null,null,null,null,null,null,null,null,null,null,61]
[{"$f":"WBS!E13","v":0},null,null,null,null,null,null,null,null,null,null,null,null,62]
[{"$f":"WBS!E14","v":0},null,null,null,null,null,null,null,null,null,null,null,null,63]
[{"$f":"WBS!E15","v":0},null,null,null,null,null,null,null,null,null,null,null,null,64]
[{"$f":"WBS!E16","v":0},null,null,null,null,null,null,null,null,null,null,null,null,65]
[{"$f":"WBS!E17","v":0},null,null,null,null,null,null,null,null,null,null,null,null,66]
[{"$f":"WBS!E18","v":0},null,null,null,null,null,null,null,null,null,null,null,null,67]
[{"$f":"WBS!E19","v":0},null,null,null,null,null,null,null,null,null,null,null,null,68]
[{"$f":"WBS!E20","v":0},null,null,null,null,null,null,null,null,null,null,null,null,69]
[{"$f":"WBS!E21","v":0},null,null,null,null,null,null,null,null,null,null,null,null,70]
[{"$f":"WBS!E22","v":0},null,null,null,null,null,null,null,null,null,null,null,null,71]
[{"$f":"WBS!E23","v":0},null,null,null,null,null,null,null,null,null,null,null,null,72]
[{"$f":"WBS!E24","v":0},null,null,null,null,null,null,null,null,null,null,null,null,73]
[{"$f":"WBS!E25","v":0},null,null,null,null,null,null,null,null,null,null,null,null,74]
[{"$f":"WBS!E26","v":0},null,null,null,null,null,null,null,null,null,null,null,null,75]
[{"$f":"WBS!E27","v":0},null,null,null,null,null,null,null,null,null,null,null,null,76]
[{"$f":"WBS!E28","v":0},null,null,null,null,null,null,null,null,null,null,null,null,77]
[{"$f":"WBS!E29","v":0},null,null,null,null,null,null,null,null,null,null,null,null,78]
[{"$f":"WBS!G3","v":"[LOT 4]"}]
[{"$f":"WBS!G4","v":"[TACHE A4]"},null,null,null,null,null,null,null,null,null,null,null,null,16]
[{"$f":"WBS!G5","v":"[TACHE B4]"},null,null,null,null,null,null,null,null,null,null,null,null,17]
[{"$f":"WBS!G6","v":"[TACHE C4]"},null,null,null,null,null,null,null,null,null,null,null,null,18]
[{"$f":"WBS!G7","v":"[TACHE D4]"},null,null,null,null,null,null,null,null,null,null,null,null,19]
[{"$f":"WBS!G8","v":"[TACHE E4]"},null,null,null,null,null,null,null,null,null,null,null,null,20]
[{"$f":"WBS!G9","v":0},null,null,null,null,null,null,null,null,null,null,null,null,84]
[{"$f":"WBS!G10","v":0},null,null,null,null,null,null,null,null,null,null,null,null,85]
[{"$f":"WBS!G11","v":0},null,null,null,null,null,null,null,null,null,null,null,null,86]
[{"$f":"WBS!G12","v":0},null,null,null,null,null,null,null,null,null,null,null,null,87]
[{"$f":"WBS!G13","v":0},null,null,null,null,null,null,null,null,null,null,null,null,88]
[{"$f":"WBS!G14","v":0},null,null,null,null,null,null,null,null,null,null,null,null,89]
[{"$f":"WBS!G15","v":0},null,null,null,null,null,null,null,null,null,null,null,null,90]
[{"$f":"WBS!G16","v":0},null,null,null,null,null,null,null,null,null,null,null,null,91]
[{"$f":"WBS!G17","v":0},null,null,null,null,null,null,null,null,null,null,null,null,92]
[{"$f":"WBS!G18","v":0},null,null,null,null,null,null,null,null,null,null,null,null,93]
[{"$f":"WBS!G19","v":0},null,null,null,null,null,null,null,null,null,null,null,null,94]
[{"$f":"WBS!G20","v":0},null,null,null,null,null,null,null,null,null,null,null,null,95]
[{"$f":"WBS!G21","v":0},null,null,null,null,null,null,null,null,null,null,null,null,96]
[{"$f":"WBS!G22","v":0},null,null,null,null,null,null,null,null,null,null,null,null,97]
[{"$f":"WBS!G23","v":0},null,null,null,null,null,null,null,null,null,null,null,null,98]
[{"$f":"WBS!G24","v":0},null,null,null,null,null,null,null,null,null,null,null,null,99]
[{"$f":"WBS!G25","v":0},null,null,null,null,null,null,null,null,null,null,null,null,100]
[{"$f":"WBS!G26","v":0},null,null,null,null,null,null,null,null,null,null,null,null,101]
[{"$f":"WBS!G27","v":0},null,null,null,null,null,null,null,null,null,null,null,null,102]
[{"$f":"WBS!G28","v":0},null,null,null,null,null,null,null,null,null,null,null,null,103]
[{"$f":"WBS!G29","v":0},null,null,null,null,null,null,null,null,null,null,null,null,104]
[null,null,null,null,null,null,null,null,null,null,"Totaux : ",{"$f":"SUM(L2:L109)","v":1},{"$f":"SUM(M2:M109)","v":3}]
[]
["ORDRE EXECUTION"]
["[TACHE A1]"]
["[TACHE B2]"]
["[TACHE C1]"]
["[TACHE D1]"]
["[TACHE E1]"]
["[TACHE A2]"]
["[TACHE B1]"]
["[TACHE C2]"]
["[TACHE D2]"]
["[TACHE E2]"]
["[TACHE A3]"]
["[TACHE B3]"]
["[TACHE C3]"]
["[TACHE D3]"]
["[TACHE E3]"]
["[TACHE A4]"]
["[TACHE B4]"]
["[TACHE C4]"]
["[TACHE D4]"]
["[TACHE E4]"]
[0]
[0]
[0]
[0]
[0]
[0]
[0]
[0]
[0]
[0]
[0]
[0]
[0]
[0]
[0]
[0]
[0]
[0]
[0]
[0]
[0]
[0]
[0]
[0]
[0]
[0]
[0]
[0]
[0]
[0]
[0]
[0]
[0]
[0]
[0]
[0]
[0]
[0]
[0]
[0]
[0]
[0]
[0]
[0]
[0]
[0]
[0]
[0]
[0]
[0]
[0]
[0]
[0]
[0]
[0]
[0]
[0]
[0]
[0]
[0]
[0]
[0]
[0]
[0]
[0]
[0]
[0]
[0]
[0]
[0]
[0]
[0]
[0]
[0]
[0]
[0]
[0]
[0]
[0]
[0]
[0]
[0]
[0]
[0]